Cogmind - Beta 13 @@@ ROGUE MODE // 2024.07.07 @ 02:01:22 Player: Exterminator Result: Destroyed by G-47 Trooper with Particle Gun Performance ------------- Evolutions (3) 1500 Regions Visited (5) 1000 Robots Destroyed (67) 335 Value Destroyed (1874) 1874 Prototype IDs (2) 40 Alien Tech Used (0) 0 Bonus (23) 23 TOTAL SCORE: 4772 Bonus ------- High Alert Combat Kills 23 Cogmind --------- Core Integrity 0/700 Matter 300/300 Energy 92/100 System Corruption 14% Temperature Cool (9) Movement Core (50) Location -7/Factory Parts ------- > --- POWER (2) -------- (None) > --- PROPULSION (2) --- (None) > --- UTILITY (5) ------ (None) > --- WEAPON (4) ------- Remote Datajack > --- INVENTORY (5) ---- Improved Signal Interpreter Hacking Suite Peak State ------------ > --- POWER ------------ Deuterium Engine Nuclear Core > --- PROPULSION ------- Carbon-fiber Leg Carbon-fiber Leg > --- UTILITY ---------- Improved Heat Sink Medium Storage Unit Improved Terrain Scanner Hardlight Generator Recalibrator > --- WEAPON ----------- Heavy Laser Gatling Laser Advanced Beam Cannon Gauss Rifle > --- INVENTORY -------- Improved Sensor Array Improved Signal Interpreter Hardlight Generator Hardlight Generator Hacking Suite Assault Rifle Remote Datajack [Rating: 43] Favorites ----------- Power Heavy Ion Engine Engine Heavy Ion Engine Power Core Nuclear Core Propulsion Improved Carbon-fiber Leg Treads Light Treads Leg Improved Carbon-fiber Leg Utility Hardlight Generator Device Hardlight Generator Storage Medium Storage Unit Processor Visual Processing Unit Protection Medium Armor Plating Weapon Light Assault Rifle Energy Gun Lightning Gun Energy Cannon Advanced Beam Cannon Ballistic Gun Light Assault Rifle Special Weapon Remote Datajack Special Melee Weapon Datajack Build | -11 -10 -9 -9 -8 -7 ------- Run | Yrd Mat Mat Min Mat Fac Slots Evolved 6 | . . 2 . 2 2 Power 1 | . . . . 1 . Propulsion . | . . . . . . Utility 3 | . . 2 . . 1 Weapon 2 | . . . . 1 1 Parts Attached 85 | 8 1 8 1 44 23 Power 19 | 3 1 1 . 10 4 Engine 13 | 3 1 . . 7 2 Core 6 | . . 1 . 3 2 Reactor . | . . . . . . Propulsion 20 | 2 . 2 . 11 5 Treads 2 | 2 . . . . . Leg 18 | . . 2 . 11 5 Wheel . | . . . . . . Hover . | . . . . . . Flight . | . . . . . . Utility 16 | 1 . 4 . 5 6 Device 12 | . . 2 . 5 5 Storage 2 | 1 . 1 . . . Processor 1 | . . 1 . . . Hackware . | . . . . . . Protection 1 | . . . . . 1 Artifact . | . . . . . . Weapon 30 | 2 . 1 1 18 8 Energy Gun 8 | . . . . 6 2 Energy Cannon 1 | . . . . 1 . Ballistic Gun 17 | 2 . 1 1 9 4 Ballistic Cannon . | . . . . . . Launcher . | . . . . . . Special Weapon 2 | . . . . . 2 Impact Weapon . | . . . . . . Slashing Weapon . | . . . . . . Piercing Weapon . | . . . . . . Special Melee Weapon 2 | . . . . 2 . Unidentified Prototypes 2 | . . . . 2 . Parts Lost 32 | . . . . 9 23 Power 5 | . . . . 1 4 Propulsion 6 | . . . . . 6 Utility 10 | . . . . 4 6 Weapon 11 | . . . . 4 7 Highest Loss Streak 15 | . . . . 2 15 To Critical Strikes . | . . . . . . Average Slot Usage (%) 93 | . 85 92 100 95 85 Engine 11 | . 14 . . 13 9 Core 4 | . . 10 11 4 3 Treads 1 | . 28 1 . . . Leg 16 | . . 20 22 17 13 Device 19 | . . 21 22 19 23 Storage 8 | . 14 11 11 9 5 Processor 4 | . . 5 11 5 . Energy Gun 9 | . . . . 11 10 Energy Cannon 1 | . . . . . 5 Ballistic Gun 13 | . 28 22 22 13 6 Naked Turns . | . . . . . . Heaviest Build 57 | 12 12 29 29 46 57 Greatest Support 40 | 40 40 40 34 36 36 Greatest Overweight (x) 2 | . . . . 2 2 Average Overweight (x) . | . . . . 1 . Largest Inventory Capacity 10 | 8 8 10 10 10 10 Average Capacity 9 | 7 8 8 10 10 9 Most Carried 10 | 4 1 8 8 10 10 Average Carried 6 | . . 6 7 6 7 Final Capacity 10 | 8 8 10 10 10 5 Final Carried 10 | . 1 7 8 10 2 Class Distribution -------------------- 35% | Mutant 25% | Tank 13% | Scavenger-Skirmisher 13% | Scavenger-Tank 10% | Skirmisher Dominant Class ---------------- Mutant | -10/Materials Mutant | -9/Materials Mutant | -9/Mines Tank | -8/Materials Tank | -7/Factory Resources | -11 -10 -9 -9 -8 -7 ----------- Run | Yrd Mat Mat Min Mat Fac Matter Collected 1510 | 264 40 154 22 723 307 Remotely . | . . . . . . Salvage Created 2723 | . 80 153 69 1496 925 Parts 151 | . 6 14 6 83 42 Haulers Intercepted 1 | . . . . 1 . Recyclers Shooed 4 | . . 1 . 1 2 Parts Field Recycled . | . . . . . . Retrieved Matter . | . . . . . . Parts Self-Destructed . | . . . . . . Prevented . | . . . . . . Kills | -11 -10 -9 -9 -8 -7 ------- Run | Yrd Mat Mat Min Mat Fac Combat Hostiles Destroyed 45 | . 2 4 4 27 8 Guns 40 | . 2 4 4 25 5 Cannons 3 | . . . . . 3 AOE 1 | . . . . 1 . Classes Destroyed 13 | . 1 3 . 4 5 Worker 1 | . . . . 1 . Builder 2 | . . . . . 2 Hauler 1 | . . . . 1 . Recycler 8 | . . . . 2 6 Mechanic 1 | . . . . . 1 Watcher 9 | . . 2 . 5 2 Swarmer 17 | . . 3 4 10 . Grunt 13 | . 2 . . 7 4 Brawler 1 | . . . . . 1 Duelist 1 | . . . . . 1 Sentry 8 | . . 1 . 7 . Hunter 4 | . . . . 3 1 Programmer 1 | . . . . . 1 Best Kill Streak 9 | . 2 3 4 5 9 Combat Bots Only 5 | . 2 3 4 5 3 Max Kills in Single Turn 2 | . 1 1 2 1 2 Gunslinging 1 | . . . 1 . . Exploded 1 | . . . . 1 . Melee . | . . . . . . Uniques/NPCs Destroyed . | . . . . . . Combat | -11 -10 -9 -9 -8 -7 -------- Run | Yrd Mat Mat Min Mat Fac Hostile Shots Fired 582 | . 17 47 20 285 213 Missed 130 | . 5 11 7 68 39 Damage Taken 4898 | . 127 247 70 1879 2575 Core 987 | . 21 40 12 203 711 Absorbed by Shields 976 | . . 92 32 608 244 Regen/Repaired (Parts) 110 | . . . . 110 . Core Remaining (%) 85 | 100 91 . 87 63 . Volleys Fired 207 | . 7 39 4 105 52 Largest 4 | . 2 2 2 3 4 Hottest 245 | . 40 40 40 165 245 Shots Fired 513 | . 14 78 8 264 149 Gun 472 | . 14 78 8 264 108 Cannon 38 | . . . . . 38 Launcher . | . . . . . . Special 3 | . . . . . 3 Kinetic 289 | . 14 78 8 143 46 Thermal 118 | . . . . 24 94 Explosive . | . . . . . . Electromagnetic 103 | . . . . 97 6 Robot Hit Streak 11 | . 3 7 6 11 10 Robot Miss Streak 6 | . 5 5 4 5 6 Penetration Max 1 | . . . . 1 1 Secondary Targets 6 | . 1 1 1 3 . Max Gunslinging Chain 1 | . 1 1 1 1 . Shots Hit Robots 289 | . 6 36 6 161 80 Core Hits 131 | . 3 15 5 65 43 Critical Kills 1 | . . . . 1 . Critical Parts Destroyed 2 | . . . . 2 . Critical Strikes 4 | . . . . 3 1 Burn 1 | . . . . . 1 Destroy 3 | . . . . 3 . Melee Attacks 2 | . . . . 2 . Impact . | . . . . . . Slashing . | . . . . . . Piercing . | . . . . . . Sneak Attacks . | . . . . . . Combat Hostiles . | . . . . . . Follow-up Attacks . | . . . . . . Damage Inflicted 4781 | . 50 306 51 2555 1819 Guns 4119 | . 50 306 51 2476 1236 Cannons 520 | . . . . . 520 Explosions 120 | . . . . 79 41 Melee . | . . . . . . Ramming 22 | . . . . . 22 Kinetic 1868 | . 50 306 51 1021 440 Thermal 1552 | . . . . 299 1253 Explosive . | . . . . . . Electromagnetic 1339 | . . . . 1235 104 Impact . | . . . . . . Slashing . | . . . . . . Piercing . | . . . . . . Highest Corruption 14 | . . . . 2 14 Average Corruption 2 | . . . . 2 6 Corruption Purged . | . . . . . . Corruption Blocked . | . . . . . . Effects 34 | . . . . 15 19 Message Errors 4 | . . . . 1 3 Matter Fused 9 | . . . . 6 3 Heat Flow Errors 3 | . . . . 1 2 Energy Discharges 4 | . . . . 2 2 Data Loss (minor) 4 | . . . . 2 2 Data Loss (major) 1 | . . . . 1 . Misfires 3 | . . . . 1 2 Alerts 1 | . . . . 1 . Misdirections 2 | . . . . . 2 Weapon Failures 3 | . . . . . 3 Overload Shots . | . . . . . . Overflow Damage . | . . . . . . Projectiles . | . . . . . . Explosions . | . . . . . . Melee . | . . . . . . Knockbacks . | . . . . . . Impact . | . . . . . . Kinetic . | . . . . . . Secondary . | . . . . . . Self-Inflicted Damage 94 | . . . . 56 38 Shots 2 | . . . . 1 1 Rammed 8 | . . . . . 8 Targets Rammed 11 | . . . . . 11 Kicked 3 | . . . . . 3 Crushed . | . . . . . . Highest Temperature 575 | . 18 8 . 455 575 Average Temperature 150 | . 9 7 . 124 200 Received Heat Transfer 1400 | . 72 36 . 501 791 Effects 26 | . . . . 12 14 Shutdowns 8 | . . . . 2 6 Energy Bleed 4 | . . . . 1 3 Interference 7 | . . . . 6 1 Short Circuit 2 | . . . . 1 1 Damage (minor) 3 | . . . . 2 1 Damage (core) 2 | . . . . . 2 Siege Activations . | . . . . . . Robots Corrupted 2 | . . . . 2 . Combat Hostiles 1 | . . . . 1 . Parts Fried 12 | . . . . 11 1 Impact Corruptions . | . . . . . . Robots Melted . | . . . . . . Combat Hostiles . | . . . . . . Parts Melted 2 | . . . . . 2 Heat Transferred 3044 | . . . . 581 2463 Parts Sabotaged . | . . . . . . Parts Stolen . | . . . . . . Parts Stripped . | . . . . . . Power Chain Reactions 2 | . . . . 1 1 Alert | -11 -10 -9 -9 -8 -7 ------- Run | Yrd Mat Mat Min Mat Fac Peak Influence 476 | . 50 209 186 471 476 Initial 214 | . . 20 81 72 214 Average 193 | . 12 117 171 189 326 Maximum Alert Level 2 | . . 1 . 2 2 Low Security (%) 56 | 100 100 97 100 58 . Level 1 39 | . . 2 . 37 85 Level 2 4 | . . . . 3 14 Level 3 . | . . . . . . Level 4 . | . . . . . . Level 5 . | . . . . . . High Security . | . . . . . . Max Security . | . . . . . . Squads Dispatched 9 | . 1 . . 6 2 Investigation 6 | . 1 . . 5 . Extermination . | . . . . . . Reinforcement 3 | . . . . 1 2 Assault . | . . . . . . Garrison . | . . . . . . Intercept . | . . . . . . Searches Triggered . | . . . . . . Construction Impeded 1 | . . . . . 1 Haulers Reinforced . | . . . . . . Active Scanning Responses . | . . . . . . Cargo Convoy Interrupts . | . . . . . . Stealth | -11 -10 -9 -9 -8 -7 --------- Run | Yrd Mat Mat Min Mat Fac Distress Signals 8 | . . 2 . 3 3 Communications Jammed . | . . . . . . Distress Signals . | . . . . . . Times Spotted 92 | . 3 13 4 48 24 Peak Tracking Total 8 | . 4 4 4 8 8 Tactical Retreats 1 | . . . . 1 . Traps | -11 -10 -9 -9 -8 -7 ------- Run | Yrd Mat Mat Min Mat Fac Traps Triggered 2 | . 1 . . 1 . Indirectly . | . . . . . . Trap Hack Attempts . | . . . . . . Triggered . | . . . . . . Disarmed . | . . . . . . Reprogrammed . | . . . . . . Reused . | . . . . . . Traps Extracted . | . . . . . . Installed . | . . . . . . Triggered . | . . . . . . Machines | -11 -10 -9 -9 -8 -7 ---------- Run | Yrd Mat Mat Min Mat Fac Machines Disabled 10 | . . . . 3 7 Max in Single Turn 5 | . . . . 2 5 Machines Repaired . | . . . . . . Machines Dismantled . | . . . . . . Machines Sabotaged . | . . . . . . Overloaded Fab Kills . | . . . . . . Hacking | -11 -10 -9 -9 -8 -7 --------- Run | Yrd Mat Mat Min Mat Fac Machines Accessed 13 | . . . . 11 2 Terminals 7 | . . . . 6 1 Fabricators 1 | . . . . . 1 Repair Stations 2 | . . . . 2 . Recycling Units 1 | . . . . 1 . Scanalyzers 2 | . . . . 2 . Garrison Access . | . . . . . . Total Hacks 59 | . . . . 57 2 Successful 38 | . . . . 37 1 Failed 21 | . . . . 20 1 Catastrophic 1 | . . . . 1 . Database Lockouts . | . . . . . . Manual . | . . . . . . Terminals 30 | . . . . 29 1 Fabricators 1 | . . . . . 1 Repair Stations 7 | . . . . 7 . Recycling Units 4 | . . . . 4 . Scanalyzers 17 | . . . . 17 . Garrison Access . | . . . . . . Terminal Hacks 16 | . . . . 15 1 Record 10 | . . . . 10 . Open DSF 1 | . . . . . 1 Alert Level 1 | . . . . 1 . Locate Traps 1 | . . . . 1 . Investigation Status 1 | . . . . 1 . Recall Investigation 1 | . . . . 1 . Hauler Manifests 1 | . . . . 1 . Fabricator Hacks . | . . . . . . Repair Station Hacks 5 | . . . . 5 . Scan Component 3 | . . . . 3 . Repair 2 | . . . . 2 . Recycling Unit Hacks 2 | . . . . 2 . Report Inventory 2 | . . . . 2 . Scanalyzer 15 | . . . . 15 . Insert Component 8 | . . . . 8 . Analyze 7 | . . . . 7 . Garrison Access Hacks . | . . . . . . Unauthorized Hacks . | . . . . . . Terminals . | . . . . . . Fabricators . | . . . . . . Repair Stations . | . . . . . . Recycling Units . | . . . . . . Scanalyzers . | . . . . . . Garrison Access . | . . . . . . Data Cores Recovered . | . . . . . . Used . | . . . . . . Hacking Detections 12 | . . . . 11 1 Full Trace Events 6 | . . . . 6 . Feedback Events . | . . . . . . Feedback Blocked . | . . . . . . Robot Schematics Acquired . | . . . . . . Robots Built . | . . . . . . Authchips . | . . . . . . Time . | . . . . . . Total Robot Build Rating . | . . . . . . Part Schematics Acquired 7 | . . . . 7 . Parts Built . | . . . . . . Authchips . | . . . . . . Time . | . . . . . . Total Part Build Rating . | . . . . . . Parts Repaired 2 | . . . . 2 . Time 76 | . . . . 76 . Parts Recycled . | . . . . . . Recycled Matter . | . . . . . . Retrieved Matter . | . . . . . . Retrieved Components . | . . . . . . Parts Scanalyzed 7 | . . . . 7 . Part Schematics Acquired 7 | . . . . 7 . Parts Damaged 1 | . . . . 1 . Bothacking | -11 -10 -9 -9 -8 -7 ------------ Run | Yrd Mat Mat Min Mat Fac Used RIF Installer . | . . . . . . Robots Hacked 3 | . . . . 1 2 Non-combat . | . . . . . . Combat 3 | . . . . 1 2 Robot Hacks Applied 3 | . . . . 1 2 parse_system 3 | . . . . 1 2 Relay Couplers Released . | . . . . . . Fabnet Peak Effective % . | . . . . . . Robots Rewired . | . . . . . . Allies Hacked . | . . . . . . Hacks Repelled . | . . . . . . Allies | -11 -10 -9 -9 -8 -7 -------- Run | Yrd Mat Mat Min Mat Fac Total Allies . | . . . . . . Largest Group . | . . . . . . Highest-Rated Group . | . . . . . . Highest-Rated Ally . | . . . . . . Total Orders . | . . . . . . Ally Attacks . | . . . . . . Total Damage . | . . . . . . Kills . | . . . . . . Allies Corrupted . | . . . . . . Allies Melted . | . . . . . . Intel | -11 -10 -9 -9 -8 -7 ------- Run | Yrd Mat Mat Min Mat Fac Robot Analysis Total . | . . . . . . Derelict Logs Recovered . | . . . . . . Drone Launches . | . . . . . . Drone Recoveries . | . . . . . . Exploration | -11 -10 -9 -9 -8 -7 ------------- Run | Yrd Mat Mat Min Mat Fac Turns Passed 3553 | 86 159 337 102 2252 617 Spaces Moved 1416 | 51 88 146 63 853 215 Core 18 | 9 . . . . 9 Treads 138 | 42 88 8 . . . Legs 1260 | . . 138 63 853 206 Wheels . | . . . . . . Hover . | . . . . . . Flight . | . . . . . . Fastest Speed 50 | 50 160 130 130 130 50 Average Speed 179 | 140 160 131 130 194 180 Slowest Speed 270 | 160 160 160 130 270 260 Overloaded Moves . | . . . . . . Propulsion Burnouts . | . . . . . . Robots Hopped . | . . . . . . Cave-ins Triggered . | . . . . . . Exploration Rate (%) 21 | 4 21 18 17 62 8 Regions Visited 5 Branch Regions 1 Pre-discovered Areas 1 | . . . 1 . . Known Exits Taken . | . . . . . . Unknown Exits Taken 5 | 1 1 1 1 1 . Scrap Searched 1 | . . . 1 . . Spaces Dug . | . . . . . . Terrain Destroyed 56 | . . . . 3 53 Melee . | . . . . . . Projectile 1 | . . . . 1 . AOE 55 | . . . . 2 53 Terrain Rammed . | . . . . . . Walls Destroyed . | . . . . . . Machines Disabled . | . . . . . . Actions | -11 -10 -9 -9 -8 -7 --------- Run | Yrd Mat Mat Min Mat Fac Total 2023 | 65 95 228 76 1231 328 Wait 234 | . . 21 9 192 12 Move 1411 | 50 87 145 62 852 215 Hop . | . . . . . . Pick Up 35 | 5 . 9 . 16 5 Fast Attach 16 | 1 . 3 . 7 5 Attach 27 | 6 . . . 11 10 Detach 4 | 1 . . . 2 1 Swap 42 | 1 1 5 1 26 8 Drop 33 | 1 . 6 . 18 8 Fire 207 | . 7 39 4 105 52 Melee 2 | . . . . 2 . Ram 9 | . . . . . 9 Kick 3 | . . . . . 3 Crush . | . . . . . . Escape Stasis . | . . . . . . Rewire . | . . . . . . Trap . | . . . . . . Miscellaneous . | . . . . . . Route ------- -11/Scrapyard -10/Materials (discovered 2 exits: [*Mat] / [*Min]) -9/Materials -9/Mines -8/Materials (discovered 2 exits: *Fac x2) -7/Factory (discovered 2 exits: [*Fac] / [*Low]) History --------- Turn | Location | Event 9 | -11/Scrapyard | Discovered new exit (range 14) 87 | -11/Scrapyard | Entered Materials 135 | -10/Materials | Discovered new exit (range 15) 175 | -10/Materials | Discovered new exit (range 16) 246 | -10/Materials | Entered another Materials area 246 | -9/Materials | Evolved 2 slots: Utility x2 313 | -9/Materials | Build established: Mutant 570 | -9/Materials | Discovered new exit (range 7) 583 | -9/Materials | Entered Mines 667 | -9/Mines | Discovered new exit (range 9) 669 | -9/Mines | Learned location of Storage (-7) 685 | -9/Mines | Entered Materials 685 | -8/Materials | Evolved 2 slots: Power x1, Weapon x1 1229 | -8/Materials | Build established: Scavenger-Tank 1456 | -8/Materials | Discovered new exit (range 15) 1520 | -8/Materials | Repaired Carbon-fiber Leg 2510 | -8/Materials | Build established: Tank 2668 | -8/Materials | Repaired Deuterium Engine 2847 | -8/Materials | Build established: Mutant 2910 | -8/Materials | Discovered new exit (range 4) 2937 | -8/Materials | Entered Factory 2937 | -7/Factory | Evolved 2 slots: Utility x1, Weapon x1 2944 | -7/Factory | Discovered new exit (range 13) 3167 | -7/Factory | Build established: Tank 3335 | -7/Factory | Lost 3 parts (1p1n1w) 3352 | -7/Factory | Core integrity fell below 50% 3372 | -7/Factory | Discovered new exit (range 15) 3481 | -7/Factory | System corruption reached 10% 3542 | -7/Factory | Core integrity fell below 20% 3554 | -7/Factory | Destroyed by G-47 Trooper with Particle Gun Last Messages --------------- 03526_ Acquired 10 matter. 03529_ Carbon-fiber Leg destroyed. 03532_ System corrupted: Matter fused (-5). 03532_ Acquired 5 matter. 03533_ K-01 Serf collects debris. 03533_ Carbon-fiber Leg destroyed. 03534_ K-01 Serf collects debris. 03535_ Slug penetrates Wall. 03537_ K-01 Serf collects debris. 03538_ Slug penetrates Wall. 03539_ Jacked G-47 Trooper... >>parse_system Reading system data... 03541_ Slug penetrates Wall. 03541_ Slammed into G-47 Trooper. 03545_ Recalibrator destroyed. 03547_ System corrupted: Heat flow error (+103). 03548_ Slammed into G-47 Trooper. 03550_ R-06 Scavenger collects Aluminum Leg. 03550_ Slammed into G-47 Trooper. Map ----- +----------------------------------------------------+ | ? ??????" "??????????????????????????????????????? | | ????????" ?#?????????????????????????????????????? | | ???????"" ???????????????????????????????????????? | | ??#? ??? "??????????????????????????????????????? | | ??#???""" "??? ????? ????????????????????????????? | | ####??""" "#?????????????????????????????????????? | | #? """ #??????????????? ?????????????????????? | | # #?? ?????????????????????????????????? | | # ! #????"????????????????????????????????? | | ]%+ #? ???????????????????????????????????? | | ####### #?????????????????????????????????????? | | %!#?????# #?????#########???????????????????????? | | =%%##??### ###???# #??? ???????????????????? | | %%=##??# ##### # ??????????????????????? | | !*!#####= % # ??????????????????? | | !|!+%*% %! < + ?? ???????????????? | | !%!#####!% [ # ??????# ?????????????? | | *!##??# ##### #??????? ???????????????? | | #####??#######??## ! #??????????? ???????????? | | ! ?????#????#??## ###########??????????????? | | "Y????##???????##!! # #??????????????? | | """?????##??#???#%= #!= #??????????????? | | ???????##????#== #!= #? ????????????? | | #/#+#???##??#?????# #! #??????????????? | | ???????????#?#??# # g """ #???#??????????? | | # ?????#??????????# #@% R" #??#???????????? | | # ??#?#????##???#?# # % """ #?#????????????? | | # ??????????#?#???# #%% + ? ????????? | | ??? ??##????##????# ##g#####+## ??????? | | ??????????#???????# % ??????? | | ??????#???#??#????# h ??????? | | ??????#?????????#?# "" g """ """ """ ????????? | | ??????##??????????# " F """ """ ????????????? | | ???????????#?#????# """ """?????????????? | | ??????????????#???# ????????????? | | ??????????????????# ?????????? | | ?????????????????## ??????????? | | ??????????????#???# ^^ ??????????? | | ??????????????????#% ^ ??????????? | | ???????????????"??#= ??????????? | | ???????????????? ? ^^ ^ ???????????? | | ?????? ?????????? ???????????? | | ????????????????""" #########+##???????????? | | ??????????????? """ #??????????????????????? | | ??????????????"??"" !] #??????????????????????? | | ??????????? ?????? !] #??????????????????????? | | ?????????????????? ]] ??????????????????????? | | ?????????????????? #??????????????????????? | | ?????????????????? ???????????????????????? | | ?????????????????? ??????????????????????????? | +----------------------------------------------------+ Best States ------------- Heat Dissipation 58 Energy Generation 24 Energy Capacity 455 Matter Stores 300 Matter Capacity 300 Sight Range 18 Robot Scan Range 15 Terrain Scan Range 16 Terrain Scan Density 10 Armor Coverage 225 Evasion (%) 55 Recoil Reduction 2 Item Schematics ----------------- Nuclear Core | -8/Materials | Scanalyzed Hardlight Generator | -8/Materials | Scanalyzed Titanium Leg | -8/Materials | Scanalyzed Lgt. Assault Rifle | -8/Materials | Scanalyzed Gauss Rifle | -8/Materials | Scanalyzed Lgt. Deuterium Engine | -8/Materials | Scanalyzed Datajack | -8/Materials | Scanalyzed Robot Schematics ------------------ None Fabricated ------------ Nothing Alien Tech Used ----------------- None Achievements -------------- Power Corrupts Challenges ------------ None Game ------ Seed ElectronThrusterShearcannon Manual? 0 Play Time 00:43:16 Cumulative 6.4 hours Start 2024.07.07 @ 01:17:52 End 2024.07.07 @ 02:01:22 Sessions 1 Manual Loads 0 Difficulty Rogue Special Mode None Game No. 6 Rogue 6 Adventurer 0 Explorer 0 Win Type - Total 0 Types 0/0/0/0/0/0/0/0/0 Lore% 12 Gallery% 16 Achievement% 17 Wizard Run 0 Options --------- Layout 1 ASCII 0 Keyboard 0 Movement Mouse Keybinds 0 Fullscreen 2 Font 24/Smallcaps Map View 50x35 Zoom Use 0% Tactical HUD 1 Map Filters NONE Filters NONE Steam X RUN: 61890739-163f-4e50-9d0c-dd1439bbd689